bitfinex-derivatives/quotes_ETHF0:USTF0_20260113
["timestamp","ask_amount","ask_price","bid_price","bid_amount"]
[1768341877986,1.03087141,3219.3,3218.7,0.14672107]
[1768341878187,1.03087141,3219.5,3218.7,0.14672107]
[1768341878983,1.03087141,3219.3,3218.7,0.00281146]
[1768341879881,1.03087141,3219.5,3218.7,0.00281146]
[1768341880081,2.35987141,3219.7,3218.7,0.00281146]
[1768341880287,1.03087141,3219.5,3218.7,0.00281146]
[1768341880489,1.03087141,3218.8,3217.9,0.14318513]
[1768341880798,1.03087141,3218.7,3217.5,1.32949654]
[1768341881083,1.329,3218.6,3217.5,1.32949654]
[1768341881489,1.329,3218.6,3217.5,1.33346316]
[1768341882192,2.35987141,3218.6,3217.5,0.30259175]
[1768341882486,1.03087141,3218.4,3217.5,0.30259175]
[1768341882878,1.03087141,3218.2,3217.5,0.00396662]
[1768341883082,1.03474614,3218.2,3217.5,0.00396662]
[1768341883286,0.00387473,3218.2,3217.5,0.00396662]
[1768341884994,1.329,3218.1,3217.5,0.00396662]
[1768341888297,1.03119709,3218.0,3216.6,0.29866513]
[1768341889000,1.329,3218.1,3216.6,0.29866513]
[1768341889510,1.329,3218.1,3216.6,0.30268049]
[1768341890792,1.03119709,3218.0,3216.6,0.30268049]
[1768341891098,1.329,3218.1,3216.6,0.30268049]
[1768341891295,1.03119709,3217.9,3216.6,0.30268049]
[1768341893298,1.03119709,3217.6,3216.6,0.30268049]
[1768341893600,1.03119709,3217.6,3216.6,0.15949536]
[1768341893996,1.03119709,3217.6,3216.6,0.00401536]
[1768341894705,1.03119709,3217.3,3216.6,0.00401536]
[1768341894907,1.329,3217.2,3216.2,0.14318513]
[1768341895097,1.329,3217.2,3216.0,0.15551]
[1768341895298,1.329,3217.2,3216.0,0.29869513]
[1768341895899,1.329,3217.2,3216.0,0.30248668]
[1768341899722,1.329,3217.1,3216.1,0.14318513]
[1768341900315,1.329,3217.1,3216.2,0.14318513]
[1768341901027,6.454,3218.0,3216.3,0.29868513]
[1768341901324,4.439,3217.9,3216.4,0.14318513]
[1768341901923,7.64448182,3218.2,3216.2,1.03119709]
[1768341901924,3.11,3217.8,3216.8,0.14318513]
[1768341902129,3.11,3217.8,3216.9,0.14318513]
[1768341902427,1.329,3217.8,3216.9,0.14318513]
[1768341904226,6.45787473,3218.2,3216.9,0.14318513]
[1768341904431,1.329,3218.1,3216.9,0.14318513]
[1768341906623,1.33,3218.0,3216.9,0.14318513]
[1768341907531,0.00387473,3218.2,3217.2,0.14276271]
[1768341907835,1.33,3218.1,3217.2,0.14276271]
[1768341910336,0.00387473,3218.2,3217.5,0.14276271]
[1768341913536,1.329,3218.3,3217.5,0.14276271]
[1768341913735,1.18655709,3219.3,3217.5,0.14276271]
[1768341913939,4.439,3219.2,3217.8,0.14276271]
[1768341914436,4.44220956,3219.2,3217.8,0.14276271]
[1768341914836,1.03119709,3219.0,3217.4,0.29820271]
[1768341915230,1.03119709,3218.7,3217.0,0.14276271]
[1768341915430,1.03119709,3218.4,3217.0,0.14276271]
[1768341915632,1.03119709,3218.1,3216.6,0.14276271]
[1768341915833,3.11,3218.0,3216.6,0.14276271]
[1768341916034,1.03119709,3217.8,3216.6,0.14276271]
[1768341916232,0.38746365,3217.7,3216.1,0.14276271]
[1768341916434,1.03119709,3217.8,3216.1,0.14276271]
[1768341916631,0.38746827,3217.7,3216.1,0.14276271]
[1768341916835,1.03119709,3217.8,3216.1,0.14276271]
[1768341917036,0.38746833,3217.7,3216.1,0.14276271]
[1768341917237,1.03119709,3217.8,3216.1,0.14276271]
[1768341917532,0.38744802,3217.7,3216.1,0.14276271]
[1768341917733,3.26542,3218.0,3216.1,0.14276271]
[1768341917935,0.38744811,3217.9,3216.1,0.14276271]
[1768341918134,0.38744811,3217.8,3216.1,0.14276271]
[1768341918334,0.38744811,3217.7,3216.1,0.14276271]
[1768341918535,3.26542,3218.0,3216.1,0.14276271]
[1768341918730,0.38743496,3217.9,3216.1,0.14276271]
[1768341918935,0.38743496,3217.8,3216.1,0.14276271]
[1768341919140,0.1554,3218.5,3216.1,0.14276271]
[1768341919341,4.10340353,3218.4,3216.1,0.14276271]
[1768341919642,0.38740353,3218.3,3216.1,0.14276271]
[1768341919941,0.38740353,3218.2,3216.1,0.14276271]
[1768341920242,0.38738472,3218.1,3216.1,0.14276271]
[1768341920442,3.716,3218.4,3216.1,0.14276271]
[1768341920642,0.3873866,3218.3,3216.6,0.29179351]
[1768341920842,0.3873866,3218.2,3216.6,0.29179351]
[1768341921038,0.3873866,3218.1,3216.6,0.29179351]
[1768341921239,3.716,3218.4,3216.6,0.29179351]
[1768341921548,0.38738642,3218.3,3216.6,0.29179351]
[1768341921842,0.38738642,3218.2,3216.6,0.29179351]
[1768341922042,3.716,3218.4,3216.6,0.29179351]
[1768341922342,0.38741361,3218.3,3216.6,0.29179351]
[1768341922544,0.38741361,3218.2,3216.6,0.29179351]
[1768341922731,3.716,3218.4,3216.6,0.29179351]
[1768341922935,0.38739132,3218.3,3216.6,0.29179351]
[1768341923131,0.38739132,3218.2,3216.6,0.29179351]
[1768341923330,0.38739132,3218.1,3216.6,0.29179351]
[1768341923640,3.716,3218.4,3216.6,0.29179351]
[1768341923943,0.3874204,3218.3,3216.6,0.29179351]
[1768341924145,3.8714,3218.4,3216.6,0.29179351]
[1768341924146,0.3874204,3218.2,3216.6,0.29179351]
[1768341924344,0.3874204,3218.1,3216.6,0.29179351]
[1768341924541,0.3874354,3218.0,3216.0,0.15930155]
[1768341924739,0.3874354,3217.9,3216.1,0.13631351]
[1768341924935,0.3874354,3217.8,3216.1,0.13631351]
[1768341925139,0.3874354,3217.7,3216.1,0.13631351]
[1768341925343,3.716,3218.4,3216.1,0.13631351]
[1768341925538,0.15542,3218.0,3216.1,0.13631351]
[1768341925736,0.38745249,3217.9,3216.1,0.13631351]
[1768341927145,0.15542,3218.0,3216.1,0.13631351]
[1768341927353,0.38746424,3217.9,3216.1,0.13631351]
[1768341927543,0.38746424,3217.8,3216.1,0.13631351]
[1768341929948,1.341,3217.7,3216.1,0.13631351]
[1768341930251,0.38746424,3217.6,3216.1,0.13631351]
[1768341932247,4.451,3217.5,3216.1,0.13631351]
[1768341937151,0.15543,3217.8,3216.1,0.13631351]
[1768341937355,4.451,3217.7,3216.1,0.13631351]
[1768341937555,0.15543,3217.8,3216.1,0.13631351]
[1768341937853,4.05,3217.7,3216.1,0.13631351]
[1768341939556,0.15543,3217.8,3216.5,0.13487823]
[1768341939756,1.341,3217.7,3216.5,0.13487823]
[1768341944052,0.38797792,3217.6,3216.5,0.13487823]
[1768341944259,1.341,3217.7,3216.5,0.13487823]
[1768341944458,0.38799432,3217.6,3216.5,0.13487823]
[1768341944647,1.341,3217.7,3216.5,0.13487823]
[1768341944942,0.38799432,3217.6,3216.5,0.13487823]
[1768341945143,0.38837206,3217.5,3216.5,0.13487823]
[1768341945354,0.15543,3217.8,3216.8,0.13487823]
[1768341945554,1.72837205,3217.7,3216.8,0.13487823]
[1768341945757,1.34,3217.7,3217.0,0.13487823]
[1768341949159,1.03151105,3218.0,3217.0,0.13487823]
[1768341949456,1.72929862,3217.9,3217.0,0.13487823]
[1768341949655,1.341,3217.9,3217.0,0.13487823]
[1768341950451,1.03151105,3218.0,3217.0,0.13487823]
[1768341950651,1.72932259,3217.9,3217.0,0.13487823]
[1768341950850,0.38832259,3217.8,3217.0,0.13487823]
[1768341951156,0.38832259,3217.8,3216.7,1.03151105]
[1768341951359,1.03151105,3217.6,3216.6,0.13487823]
[1768341953461,1.03151105,3217.4,3216.2,2.79162792]
[1768341953653,1.03151105,3217.2,3216.1,0.14287823]
[1768341953857,0.15543,3217.8,3216.0,1.0353026]
[1768341953858,1.03151105,3217.4,3216.3,0.13487823]
[1768341955676,1.03151105,3217.6,3216.4,1.03151105]
[1768341955966,0.38846816,3217.5,3216.4,1.03151105]
[1768341956162,0.38846816,3217.4,3216.3,0.13487823]
[1768341956370,1.03151105,3217.6,3216.3,1.16638928]
[1768341956561,0.38846766,3217.5,3216.3,1.16638928]
[1768341956757,0.38846766,3217.4,3216.3,1.16638928]
[1768341956957,1.03151105,3217.6,3216.3,1.16638928]
[1768341957157,0.38846759,3217.5,3216.3,1.16638928]
[1768341957357,0.38846759,3217.4,3216.3,1.16638928]
[1768341957558,1.03151105,3217.6,3216.3,1.16638928]
[1768341957758,0.38846688,3217.5,3216.3,1.16638928]
[1768341957953,0.38846688,3217.4,3216.3,1.16638928]
[1768341958161,1.03151105,3217.6,3216.3,1.16638928]
[1768341958361,0.38846687,3217.5,3216.3,1.16638928]
[1768341958567,0.38846687,3217.4,3216.3,1.16638928]
[1768341958869,1.03151105,3217.6,3216.3,1.16638928]
[1768341959072,0.38846687,3217.5,3216.3,1.16638928]
[1768341959258,1.41997792,3217.4,3216.3,1.16638928]
[1768341959564,1.03151105,3217.4,3216.3,1.16638928]
[1768341960364,0.38848259,3217.3,3216.3,0.13487823]
[1768341960675,1.03151105,3217.3,3216.3,0.13487823]
[1768341968676,1.03151105,3217.5,3216.3,0.13487823]
[1768341968886,0.38841797,3217.4,3216.3,0.13487823]
[1768341969086,0.38841797,3217.3,3216.3,0.13487823]
[1768341969279,1.03151105,3217.5,3216.3,0.13487823]
[1768341969473,0.38841001,3217.4,3216.3,0.13487823]
[1768341969677,3.11,3217.8,3216.7,0.13383255]
[1768341969878,1.73640074,3217.7,3216.7,0.13383255]
[1768341970091,0.38840074,3217.6,3216.7,0.13383255]
[1768341970282,0.38840074,3217.5,3216.7,0.13383255]
[1768341970482,2.37951105,3217.7,3216.7,0.13383255]
[1768341970784,0.38839351,3217.6,3216.7,0.13383255]
[1768341970986,0.38839351,3217.5,3216.7,0.13383255]
[1768341971187,2.37951105,3217.7,3216.7,0.13383255]
[1768341971487,0.38838086,3217.6,3216.7,0.13383255]
[1768341971674,1.73638086,3217.5,3216.7,0.13383255]
[1768341971882,1.348,3217.5,3216.7,0.13383255]
[1768341973285,2.37951105,3217.5,3216.7,0.13383255]
[1768341973685,1.348,3217.5,3216.7,0.13383255]
[1768341973986,1.349,3217.4,3216.7,0.13383255]
[1768341976588,4.14151105,3217.9,3216.7,0.13383255]
[1768341976795,1.73740344,3217.8,3216.7,0.13383255]
[1768341976988,0.38840344,3217.7,3216.7,0.13383255]
[1768341977290,0.38840344,3217.6,3216.7,0.13383255]
[1768341977489,1.03151105,3218.4,3216.7,0.13383255]
[1768341977490,0.15539,3218.7,3217.4,0.14308551]
[1768341977698,1.03151105,3218.5,3217.4,0.14308551]
[1768341978193,1.18690105,3218.7,3217.4,1.17459656]
[1768341978389,1.349,3218.4,3217.5,0.14308551]
[1768341979494,1.03151105,3218.9,3217.6,1.17459656]
[1768341979694,1.03151105,3218.9,3217.7,0.14308551]
[1768341979897,1.349,3218.8,3217.7,0.14308551]
[1768341980792,0.00320956,3219.2,3218.3,0.14308551]
[1768341980992,1.349,3219.3,3218.4,1.17459656]
[1768341981599,1.349,3219.3,3218.4,0.14308551]
[1768341982094,1.349,3219.3,3218.4,0.14674633]
[1768341982095,0.00355278,3219.3,3218.4,0.14674633]
[1768341982296,1.349,3219.2,3218.4,0.14674633]
[1768341984998,1.349,3220.1,3218.7,1.03151105]
[1768341985197,1.03151105,3219.8,3218.7,1.03151105]
[1768341985394,0.1553,3220.4,3218.8,0.14308551]
[1768341985599,1.03151105,3219.9,3218.8,0.14308551]
[1768341985899,1.03478931,3219.9,3218.8,0.14308551]
[1768341986099,0.00327826,3219.9,3218.9,1.17459656]
[1768341987195,0.00327826,3219.9,3218.9,0.14308551]
[1768341987700,1.348,3219.8,3218.9,0.14308551]
[1768341987891,0.00327826,3219.9,3218.9,0.14308551]
[1768341988092,1.348,3219.8,3218.9,0.14308551]
[1768341988601,0.00327826,3219.9,3218.9,0.14308551]
[1768341988796,1.348,3219.8,3218.9,0.14308551]
[1768341989303,1.35127826,3219.9,3219.0,0.14308551]
[1768341991405,0.00327826,3219.9,3219.0,0.14308551]
[1768341991598,1.03151105,3219.4,3218.5,0.14308551]
[1768341991800,1.03151105,3219.2,3218.5,0.14308551]
[1768341992003,1.03151105,3219.2,3218.4,0.00366082]
[1768341992304,1.03151105,3219.5,3218.4,0.00366082]
[1768341993102,1.03151105,3219.3,3218.4,0.00366082]
[1768341993703,1.03151105,3219.5,3218.4,0.00366082]
[1768341994106,1.347,3219.6,3218.5,1.17459656]
[1768341995204,1.03151105,3219.5,3218.5,0.14308551]
[1768341995803,1.03151105,3218.8,3218.4,0.00366082]
[1768341996008,1.03151105,3218.9,3217.9,0.13840364]
[1768341996207,1.03151105,3219.1,3217.9,0.13840364]
[1768341996604,1.03151105,3219.1,3217.9,1.16991469]
[1768341996999,1.03151105,3219.1,3217.9,1.17340049]
[1768341997200,0.00327826,3219.9,3218.0,0.13840364]
[1768341997406,0.00327826,3219.9,3219.0,1.16991469]
[1768341997910,1.03151105,3219.7,3218.6,0.13840364]
[1768341998505,0.00327826,3219.9,3219.1,1.03151105]
[1768341998703,0.00327826,3219.9,3219.0,0.13840364]
[1768342001104,1.03151105,3219.7,3218.6,0.13840364]
[1768342001517,0.00327826,3219.9,3218.8,0.13840364]
[1768342001706,0.00327826,3219.9,3219.4,1.03151105]
[1768342001907,0.431,3220.4,3219.4,1.03151105]
[1768342002410,1.03151105,3220.3,3218.8,0.13840364]
[1768342002715,1.03151105,3220.1,3218.9,1.03151105]
[1768342002917,1.03511965,3220.1,3218.9,1.03151105]
[1768342003217,0.0036086,3220.1,3219.1,1.03151105]
[1768342004118,0.0036086,3220.1,3219.3,1.03151105]
[1768342004708,0.0036086,3220.1,3218.3,2.79162792]
[1768342004709,0.0036086,3220.1,3219.5,1.03151105]
[1768342004905,1.347,3220.4,3219.3,1.03151105]
[1768342005818,1.35090961,3220.4,3219.3,1.03151105]
[1768342007416,1.35090961,3220.4,3219.1,0.13840364]
[1768342010722,0.00390961,3220.4,3219.1,0.13840364]
[1768342010920,1.346,3220.3,3219.3,1.02970378]
[1768342012010,0.00390961,3220.4,3219.3,1.02970378]
[1768342012216,0.00390961,3220.4,3219.4,1.02970378]
[1768342013820,0.00390961,3220.4,3219.4,1.16810742]
[1768342014125,0.00390961,3220.4,3219.4,0.13840364]
[1768342014727,0.00390961,3220.4,3219.4,0.29375364]
[1768342015022,0.00390961,3220.4,3219.6,0.15534]
[1768342015227,3.108,3221.0,3219.6,1.02970378]
[1768342015427,1.346,3220.9,3220.0,0.15532]
[1768342016234,1.34913894,3220.9,3220.0,0.15532]
[1768342016526,0.00313894,3220.9,3220.2,1.02970378]
[1768342016723,1.00357773,3221.5,3220.2,1.02970378]
[1768342016724,1.346,3221.3,3220.2,1.02970378]
[1768342016928,1.346,3221.3,3220.3,0.1553]
[1768342016929,1.48189481,3221.3,3220.3,0.1553]
[1768342017721,1.48444588,3221.3,3220.3,0.15900368]
[1768342020435,0.00255107,3221.3,3220.3,0.15900368]
[1768342020632,0.00255107,3221.3,3220.4,0.1553]
[1768342020830,0.00255107,3221.3,3220.4,0.29370364]
[1768342021034,0.00255107,3221.3,3220.5,0.15529]
[1768342021235,0.00255107,3221.3,3220.4,0.13840364]
[1768342021236,1.00357773,3221.5,3220.6,0.15529]
[1768342021434,0.01849206,3223.9,3220.3,0.00370368]
[1768342021435,0.13589481,3222.7,3221.2,0.15526]
[1768342021626,0.13589481,3222.5,3221.3,0.15526]
[1768342021827,0.05402615,3224.2,3222.4,1.02970378]
[1768342022030,0.13589481,3227.4,3224.7,0.15509]
[1768342022226,0.00255194,3226.6,3225.3,0.15506]
[1768342022534,0.00255194,3226.6,3224.8,4.85770378]
[1768342022535,0.4185336,3226.5,3225.4,0.4850508]
[1768342022730,0.13589481,3226.7,3225.5,0.4850508]
[1768342022731,0.4185336,3226.4,3225.5,0.4850508]
[1768342022926,0.13589481,3227.4,3225.6,0.6401008]
[1768342023126,0.13589481,3227.4,3225.7,0.4850508]
[1768342023331,0.4185336,3227.3,3225.8,0.4850508]
[1768342023635,0.4185336,3227.3,3224.7,0.00330759]
[1768342023636,0.15482,3230.4,3226.8,0.13840364]
[1768342023830,0.55778,3231.3,3228.0,0.13840364]
[1768342024035,0.55778,3231.3,3228.4,1.69869066]
[1768342024339,2.43967944,3231.9,3228.5,0.4850508]
[1768342024529,0.0202376,3232.3,3229.9,0.13436208]
[1768342024834,0.02146185,3231.2,3228.7,1.69869066]
[1768342025051,0.02146185,3231.2,3229.9,1.69869066]
[1768342025226,1.344,3231.1,3228.4,0.00396902]
[1768342025536,0.02146185,3231.2,3228.4,0.00396902]
[1768342025740,0.02146185,3231.2,3228.6,0.13903002]
[1768342026039,0.02146185,3231.2,3229.1,0.13903002]
[1768342027040,6.02146185,3231.2,3228.4,0.00396902]
[1768342027226,0.02146185,3231.2,3228.4,0.00396902]
[1768342027432,7.72015251,3231.2,3228.4,0.00396902]
[1768342027635,0.13423853,3231.1,3228.4,0.00396902]
[1768342028336,0.13423853,3230.9,3228.4,0.00396902]
[1768342028534,6.0,3231.0,3228.4,0.00396902]
[1768342028535,0.13423853,3230.7,3228.4,0.00396902]
[1768342029139,6.13423853,3230.7,3228.4,0.00396902]
[1768342029335,0.13423853,3230.6,3228.4,0.00396902]
[1768342029725,1.344,3230.5,3228.4,0.00396902]
[1768342030126,0.13423853,3231.1,3228.5,0.13903002]
[1768342030330,0.02146185,3231.2,3229.4,0.13903002]
[1768342030551,0.0202376,3232.3,3230.0,0.13903002]
[1768342030842,0.0202376,3232.3,3231.5,0.15477]
[1768342031339,0.0202376,3232.3,3231.5,6.15477]
[1768342031540,0.13423853,3236.8,3231.6,3.31981129]
[1768342031749,0.00324133,3235.3,3234.1,0.15464]
[1768342031941,0.00324133,3235.3,3234.2,3.102]
[1768342032137,9.9e-06,3235.4,3235.0,1.0]
[1768342032446,0.13423853,3236.6,3235.0,0.97463978]
[1768342032642,0.00283217,3236.6,3235.0,1.13245157]
[1768342032842,0.94155701,3236.7,3235.1,6.0]
[1768342033233,0.94155701,3236.7,3235.0,0.97785157]
[1768342033234,0.13423853,3236.6,3235.0,1.13245157]
[1768342033438,0.15228816,3236.6,3235.0,0.97785157]
[1768342033647,0.15454,3236.3,3232.8,2.39119186]
[1768342033843,0.13423853,3235.8,3232.3,0.15473]
[1768342034144,0.13423853,3235.6,3232.3,0.15473]
[1768342034451,0.94155701,3236.7,3231.0,2.64047584]
[1768342034452,0.15436,3240.0,3235.7,0.15457]
[1768342034637,0.15668801,3240.0,3236.2,0.13903002]
[1768342034834,0.15437,3239.8,3236.3,6.0]
[1768342035034,0.1544,3239.3,3236.3,6.0]
[1768342035234,40.8,3239.2,3236.3,6.0]
[1768342035448,40.8,3239.2,3236.3,6.13903002]
[1768342035649,0.245159,3240.0,3236.3,6.13903002]
[1768342035851,0.245159,3240.0,3236.3,6.0]
[1768342036039,2.39119186,3239.2,3235.7,0.00371794]
[1768342036240,0.13423853,3238.1,3235.7,0.00371794]
[1768342036544,0.13423853,3237.2,3233.2,0.15469]
[1768342036739,0.21846153,3236.3,3232.5,0.13903002]
[1768342036939,0.21846153,3236.1,3232.6,6.0]
[1768342037138,0.15453,3236.4,3232.8,0.1547]
[1768342037342,3.866,3236.3,3233.5,0.15467]
[1768342037546,0.15437,3239.9,3234.7,0.15461]
[1768342037739,2.39119186,3239.5,3234.9,0.1546]
[1768342037937,3.25806285,3239.2,3234.9,0.1546]
[1768342038138,40.8,3237.8,3235.0,6.0]
[1768342038338,4.44,3237.7,3235.0,6.0]
[1768342038540,4.44250336,3237.7,3235.0,6.0]
[1768342039045,0.21846153,3237.6,3235.0,6.0]
[1768342039349,0.21846153,3237.4,3235.0,6.0]
[1768342039843,1.342,3237.3,3235.0,6.0]
[1768342040055,0.21846153,3237.2,3235.0,6.0]
[1768342040449,4.65746153,3237.2,3235.0,6.0]
[1768342040840,4.65746153,3237.2,3235.1,0.1546]
[1768342041149,4.438,3237.2,3235.2,0.15459]
[1768342041351,4.438,3237.2,3235.2,6.15459]
[1768342042858,0.21846153,3237.1,3235.2,6.0]
[1768342043152,0.21846153,3236.8,3234.2,0.15464]
[1768342043453,0.21846153,3236.7,3234.4,6.0]
[1768342043648,0.21846153,3236.5,3234.4,6.0]
[1768342044152,0.21846153,3236.5,3234.4,6.00301195]
[1768342044554,0.21846153,3235.7,3234.4,6.00301195]
[1768342044753,4.437,3235.6,3234.4,6.00301195]
[1768342044947,0.21846153,3235.5,3234.4,0.00301195]
[1768342045743,0.21846153,3235.5,3233.6,0.15467]
[1768342045943,0.21846153,3235.5,3233.7,6.0]
[1768342046547,4.438,3235.4,3233.7,6.0]
[1768342046747,4.44025104,3235.4,3233.7,6.00313579]
[1768342048349,4.65871257,3235.4,3233.7,6.00313579]
[1768342048754,4.437,3235.3,3233.7,6.00313579]
[1768342049150,0.00225104,3235.4,3234.4,0.15463]
[1768342049549,3.095,3237.4,3235.6,0.15457]
[1768342049852,42.142,3237.3,3235.6,0.15457]
[1768342050045,40.8,3237.3,3235.7,6.15457]
[1768342050246,1.343,3237.2,3235.7,0.15457]
[1768342050442,4.438,3237.1,3235.8,6.15456]
[1768342050661,4.438,3237.1,3235.8,0.15456]
[1768342050955,4.438,3237.0,3235.8,0.15456]
[1768342051152,0.00225366,3237.2,3235.9,6.22116072]
[1768342051343,3.094,3237.8,3236.1,0.22116072]
[1768342051547,3.094,3237.8,3236.2,6.47278218]
[1768342051754,3.094,3237.8,3236.2,6.0]
[1768342052357,3.09688625,3237.8,3236.3,0.47390337]
[1768342052552,3.09688625,3237.8,3236.2,6.00264538]
[1768342052747,3.08761323,3237.8,3236.2,6.00264538]
[1768342052954,3.08761323,3237.8,3236.2,0.00264538]
[1768342052955,0.15448,3237.6,3236.2,0.00264538]
[1768342053150,0.00288625,3237.8,3236.8,0.15451]
[1768342053350,0.00288625,3237.8,3236.9,0.47483271]
[1768342053555,0.00288625,3237.8,3236.9,5.07384395]
[1768342054361,0.00288625,3237.8,3237.0,0.45313541]
[1768342054654,0.00288625,3237.8,3236.2,0.00264538]
[1768342054859,0.00288625,3237.8,3236.3,5.07384395]
[1768342056161,3.093,3237.7,3236.3,5.45264965]
[1768342056360,1.347,3237.6,3236.5,0.3788057]
[1768342056864,1.347,3237.6,3236.6,5.07384395]
[1768342057465,1.347,3237.5,3236.3,0.3788057]
[1768342057670,1.347,3237.5,3236.4,0.41178111]
[1768342057872,1.347,3237.5,3236.3,5.45264965]
[1768342058061,1.347,3237.5,3236.4,0.41181497]
[1768342058365,1.347,3237.5,3236.5,0.41278207]
[1768342058560,1.347,3237.5,3236.6,0.41278207]
[1768342058759,1.347,3237.5,3236.3,5.45264965]
[1768342058760,3.093,3237.5,3236.7,0.41278207]
[1768342058959,3.093,3237.5,3236.8,0.41278207]
[1768342058960,1.346,3237.4,3236.8,0.41278207]
[1768342059262,1.346,3237.4,3236.9,5.48740508]
[1768342059464,1.346,3237.4,3237.0,0.31333219]
[1768342059767,1.346,3237.4,3236.4,5.07384395]
[1768342060455,1.346,3237.4,3235.7,0.3788057]
[1768342060859,40.8,3237.3,3235.8,5.07384395]
[1768342061058,40.8,3237.3,3233.5,2.14331923]
[1768342061059,41.18452664,3237.3,3234.1,0.15464]
[1768342061367,0.15453,3236.6,3234.1,0.15464]
[1768342061565,40.95449,3237.3,3234.1,0.00381497]
[1768342061767,0.1545,3237.1,3234.8,0.15461]
[1768342061962,4.44,3237.0,3234.8,0.15461]
[1768342062569,4.44,3237.0,3234.1,0.15845497]
[1768342062775,4.82452664,3237.0,3234.1,0.15845497]
[1768342062973,0.15452,3236.8,3234.2,0.3788057]
[1768342063169,0.15452,3236.8,3234.2,0.5334457]
[1768342063373,0.15452,3236.8,3234.4,0.3788057]
[1768342063882,0.15453,3236.6,3234.4,0.3788057]
[1768342064375,40.8,3237.3,3234.5,0.3788057]
[1768342064871,4.442,3237.2,3234.5,0.3788057]
[1768342065074,7.554,3237.2,3235.0,0.1546]
[1768342065680,0.15451,3236.9,3235.0,0.1546]
[1768342065877,0.05380305,3236.9,3234.5,0.3788057]
[1768342066074,0.15453,3236.6,3234.5,0.3788057]
[1768342066278,0.15453,3236.5,3234.5,0.3788057]
[1768342066678,40.8,3236.4,3234.5,0.3788057]
[1768342067271,1.352,3236.3,3234.5,0.3788057]
[1768342067477,0.15456,3236.0,3234.1,0.00381497]
[1768342067677,3.24756,3235.9,3234.1,0.00381497]
[1768342068575,3.093,3235.9,3234.1,0.00381497]
[1768342068775,9.47752664,3235.9,3234.1,0.00381497]
[1768342068982,9.47752664,3235.9,3233.2,0.5334957]
[1768342068983,0.15458,3235.4,3233.2,0.5334957]
[1768342069280,1.353,3235.3,3233.2,0.5334957]
[1768342069468,0.15458,3235.4,3233.2,0.5334957]
[1768342069469,4.446,3235.2,3233.3,0.15468]
[1768342069973,4.44829796,3235.2,3233.3,0.15699016]
[1768342070674,0.00229796,3235.2,3233.3,0.15699016]
[1768342070875,4.446,3235.1,3233.3,0.15699016]
[1768342071278,4.446,3235.0,3233.3,0.15699016]
[1768342071880,4.446,3234.9,3233.3,0.15699016]
[1768342072078,0.00229796,3235.2,3233.4,0.5334857]
[1768342072275,4.446,3235.1,3233.8,0.3788057]
[1768342072476,1.353,3235.0,3233.8,0.3788057]
[1768342072677,4.446,3235.0,3233.8,0.3788057]
[1768342073784,40.8,3234.9,3233.3,0.15699016]
[1768342075691,4.452,3234.8,3233.3,0.15699016]
[1768342076286,4.452,3234.8,3233.3,0.53579586]
[1768342078290,40.8,3234.9,3233.3,0.53579586]
[1768342078489,4.459,3234.8,3233.3,0.53579586]
[1768342079186,0.38452664,3237.2,3234.5,0.5334257]
[1768342079392,6.83738313,3237.1,3234.5,0.5334257]
[1768342079689,0.15454,3236.4,3234.5,0.3788057]
[1768342079991,4.463,3236.3,3234.5,0.5334257]
[1768342080181,4.46621999,3236.3,3234.5,0.5334257]
[1768342080377,0.00321999,3236.3,3234.6,0.3788057]
[1768342080680,3.094,3237.2,3235.3,0.3788057]
[1768342080883,3.094,3238.5,3236.3,0.3788057]
[1768342081083,3.094,3239.7,3237.1,0.3788057]
[1768342081283,1.369,3239.6,3237.8,0.3788057]
[1768342081480,0.38452664,3241.7,3238.9,0.5332157]
[1768342081681,0.02196726,3241.6,3239.0,0.3788057]
[1768342081883,40.8,3241.5,3238.9,0.38138087]
[1768342082088,1.369,3241.4,3239.2,0.3788057]
[1768342082386,1.369,3241.3,3239.5,0.3788057]
[1768342082591,1.35973829,3241.4,3239.7,0.3788057]
[1768342083090,1.35973829,3241.4,3239.0,0.3788057]
[1768342083296,0.02196726,3241.6,3239.3,0.3788057]
[1768342083589,0.7228409,3241.8,3240.2,0.3788057]
[1768342083791,0.7228409,3241.8,3239.6,0.3788057]
[1768342083792,4.327,3241.7,3239.6,0.3788057]
[1768342084284,0.7228409,3241.8,3239.6,0.3788057]
[1768342084482,0.38452664,3241.6,3238.9,0.38138087]
[1768342084683,0.38452664,3241.4,3238.9,0.38138087]
[1768342084996,1.369,3241.6,3239.1,0.65390622]
[1768342086196,0.6387709,3241.5,3239.1,0.65390622]
[1768342086398,0.6387709,3241.3,3239.1,0.65390622]
[1768342087086,0.7259635,3241.8,3238.9,0.65648139]
[1768342087087,0.15429,3241.6,3238.9,0.65648139]
[1768342087290,0.7259635,3241.8,3239.3,0.65390622]
[1768342087291,3.418,3241.5,3239.3,0.65390622]
[1768342087797,0.7259635,3241.8,3239.3,0.65390622]
[1768342087998,4.459,3241.7,3239.3,0.65390622]
[1768342088589,0.7259635,3241.8,3239.3,0.65390622]
[1768342088799,4.459,3241.6,3239.3,0.65390622]
[1768342089589,5.0977709,3241.6,3239.3,0.65390622]
[1768342089888,0.6387709,3241.5,3239.3,0.65390622]
[1768342090084,0.6387709,3241.5,3239.0,0.15441]
[1768342090696,0.15427,3242.0,3239.0,0.15441]
[1768342090697,0.02025472,3242.7,3240.7,0.65390622]
[1768342091390,0.6387709,3242.6,3240.0,0.65390622]
[1768342091593,0.02025472,3242.7,3240.5,0.65390622]
[1768342091788,0.00330906,3242.6,3241.1,0.65390622]
[1768342091994,0.02248157,3243.7,3242.5,0.15424]
[1768342092195,0.02248157,3243.7,3241.8,0.65390622]
[1768342092395,0.02248157,3243.7,3242.0,1.99085649]
[1768342092689,0.02248157,3243.7,3241.5,0.80819622]
[1768342092899,0.02248157,3243.7,3241.5,0.65390622]
[1768342093093,0.6387709,3243.6,3241.5,0.00229281]
[1768342093290,6.02621546,3243.7,3241.5,0.65619903]
[1768342093495,0.02621546,3243.7,3241.5,0.65619903]
[1768342093699,0.66498636,3243.7,3241.5,0.00229281]
[1768342093891,0.6387709,3243.5,3241.5,0.00229281]
[1768342094290,0.02621546,3243.7,3242.4,0.15424]
[1768342094490,0.02621546,3243.7,3241.8,0.15427]
[1768342094687,0.66498636,3243.7,3241.8,0.15427]
[1768342094892,0.02621546,3243.7,3241.6,0.65390622]
[1768342095100,0.02024252,3244.7,3243.1,0.65390622]
[1768342095298,3.089,3246.1,3243.6,1.99085649]